bitfinex/quotes_BTCUSD_20250313
["timestamp","ask_amount","ask_price","bid_price","bid_amount"]
[1741893079102,0.01944507,80859.0,80858.0,0.0175363]
[1741893079321,0.01944507,80859.0,80858.0,0.0145363]
[1741893079787,0.01944507,80859.0,80858.0,0.0165363]
[1741893082593,6.64e-05,80859.0,80858.0,0.0626363]
[1741893083497,6.64e-05,80859.0,80858.0,0.0041693]
[1741893083703,6.64e-05,80859.0,80858.0,0.0165363]
[1741893083931,0.00610847,80859.0,80858.0,0.0165363]
[1741893084151,6.64e-05,80859.0,80858.0,0.0165363]
[1741893086449,6.64e-05,80859.0,80858.0,0.0041693]
[1741893086691,6.64e-05,80859.0,80858.0,0.0165363]
[1741893086909,0.00610847,80859.0,80858.0,0.0165363]
[1741893087135,6.64e-05,80859.0,80858.0,0.0165363]
[1741893087618,6.64e-05,80859.0,80858.0,0.21487399]
[1741893087838,6.64e-05,80859.0,80858.0,0.21687377]
[1741893088073,6.64e-05,80859.0,80858.0,0.21287377]
[1741893088317,6.64e-05,80859.0,80858.0,0.0939363]
[1741893088553,6.64e-05,80859.0,80858.0,0.09717285]
[1741893088788,6.64e-05,80859.0,80858.0,0.0939363]
[1741893089021,6.64e-05,80859.0,80858.0,0.0959363]
[1741893089512,6.64e-05,80859.0,80858.0,0.0939363]
[1741893089759,6.64e-05,80859.0,80858.0,0.21487384]
[1741893089989,6.64e-05,80859.0,80858.0,0.26443729]
[1741893090248,6.64e-05,80859.0,80858.0,0.27896247]
[1741893090481,6.64e-05,80859.0,80858.0,0.43068247]
[1741893090714,6.64e-05,80859.0,80858.0,0.43368247]
[1741893090967,6.64e-05,80859.0,80858.0,0.43068247]
[1741893091220,6.64e-05,80859.0,80858.0,0.43468247]
[1741893091467,6.64e-05,80859.0,80858.0,0.2984563]
[1741893091672,6.64e-05,80859.0,80858.0,0.0071693]
[1741893091845,6.64e-05,80859.0,80858.0,0.0165363]
[1741893092058,0.259681,80869.0,80863.0,0.012366]
[1741893092311,0.012365,80867.0,80859.0,0.247344]
[1741893092556,0.012365,80867.0,80860.0,0.012367]
[1741893092782,0.27906125,80868.0,80861.0,0.012366]
[1741893092980,0.00608692,80866.0,80861.0,0.259701]
[1741893093282,0.00608692,80865.0,80863.0,0.259694]
[1741893093742,0.247319,80868.0,80864.0,0.259692]
[1741893093975,0.00608692,80864.0,80863.0,0.012366]
[1741893094172,0.247319,80868.0,80863.0,0.012366]
[1741893094316,0.00608692,80864.0,80863.0,0.012366]
[1741893094550,0.247315,80869.0,80864.0,0.012366]
[1741893094752,0.012365,80870.0,80864.0,0.259692]
[1741893095556,0.2476432,80872.0,80862.0,0.012366]
[1741893095798,0.012365,80869.0,80863.0,0.012366]
[1741893096069,0.24734,80861.0,80858.0,0.00058263]
[1741893096270,0.247344,80860.0,80858.0,0.00058263]
[1741893096748,0.012366,80865.0,80859.0,0.012367]
[1741893096963,0.24731,80871.0,80863.0,0.247329]
[1741893097222,0.25968,80869.0,80863.0,0.259695]
[1741893098093,0.012365,80870.0,80864.0,0.012366]
[1741893098539,0.27906184,80868.0,80863.0,0.259695]
[1741893098781,0.01937884,80868.0,80867.0,0.259684]
[1741893099166,0.01937884,80868.0,80867.0,0.339484]
[1741893099290,0.01937884,80868.0,80867.0,0.387684]
[1741893099733,0.02037884,80868.0,80867.0,0.387684]
[1741893100179,0.01937884,80868.0,80867.0,0.387684]
[1741893100402,0.01937884,80868.0,80867.0,0.50738499]
[1741893100679,0.01937884,80868.0,80867.0,0.50938499]
[1741893101408,0.01937884,80868.0,80867.0,0.51138499]
[1741893101643,0.01937884,80868.0,80867.0,0.50938499]
[1741893101881,0.01937884,80868.0,80867.0,0.51238499]
[1741893102105,0.01937884,80868.0,80867.0,0.51738499]
[1741893102333,0.01937884,80868.0,80867.0,0.52901355]
[1741893102617,0.01937884,80868.0,80867.0,0.52401355]
[1741893103039,0.01937884,80868.0,80867.0,0.53001355]
[1741893103716,0.01937884,80868.0,80867.0,0.53601355]
[1741893107007,8.4e-07,80868.0,80867.0,0.8505544]
[1741893107275,0.0003382,80869.0,80868.0,0.32690585]
[1741893107513,0.0003382,80869.0,80868.0,0.52530684]
[1741893107942,2e-07,80869.0,80868.0,0.52530684]
[1741893108205,4e-07,80872.0,80871.0,0.71191285]
[1741893108404,4e-07,80872.0,80871.0,0.98329384]
[1741893109462,4e-07,80872.0,80871.0,0.98298528]
[1741893110494,4e-07,80872.0,80871.0,0.98898528]
[1741893111182,0.01937161,80909.0,80898.0,0.259585]
[1741893111386,0.01937161,80909.0,80898.0,0.65842599]
[1741893111586,0.02477421,80920.0,80898.0,0.65842599]
[1741893111787,0.11080636,80924.0,80898.0,0.65842599]
[1741893112413,1.8e-07,80899.0,80898.0,0.9940209]
[1741893112918,1.8e-07,80899.0,80898.0,1.0440209]
[1741893113121,1.8e-07,80899.0,80898.0,1.0490209]
[1741893113534,1.8e-07,80899.0,80898.0,1.0470209]
[1741893113957,1.8e-07,80899.0,80898.0,1.0440209]
[1741893114168,1.8e-07,80899.0,80898.0,1.0500209]
[1741893114394,1.8e-07,80899.0,80898.0,1.05947374]
[1741893114738,1.8e-07,80899.0,80898.0,1.00443374]
[1741893115495,1.8e-07,80899.0,80898.0,1.01043374]
[1741893115932,1.8e-07,80899.0,80898.0,1.0009809]
[1741893116520,1.8e-07,80899.0,80898.0,0.83484005]
[1741893116722,1.8e-07,80899.0,80898.0,0.98644005]
[1741893117314,1.8e-07,80899.0,80898.0,0.98044005]
[1741893117897,1.8e-07,80899.0,80898.0,0.9949809]
[1741893118704,1.8e-07,80899.0,80898.0,1.0009809]
[1741893119314,1.8e-07,80899.0,80898.0,0.9949809]
[1741893119541,1.8e-07,80899.0,80898.0,1.0009809]
[1741893120278,1.7e-07,80899.0,80898.0,1.0009809]
[1741893120493,0.03733472,80931.0,80911.0,0.259544]
[1741893120697,0.02497872,80931.0,80911.0,0.37924499]
[1741893120904,0.7852,80933.0,80911.0,0.45754499]
[1741893121324,0.7852,80933.0,80932.0,0.259477]
[1741893121535,0.0003382,80936.0,80935.0,0.012355]
[1741893121743,0.024983,80936.0,80932.0,0.259476]
[1741893122347,0.024983,80936.0,80933.0,0.25947]
[1741893122560,0.024983,80936.0,80933.0,0.247117]
[1741893122785,0.024983,80936.0,80932.0,0.012356]
[1741893122989,0.037338,80936.0,80931.0,0.247121]
[1741893123615,0.024983,80936.0,80932.0,0.259474]
[1741893123848,0.024983,80936.0,80934.0,0.259467]
[1741893124063,0.024983,80936.0,80935.0,0.012355]
[1741893124277,0.00046276,80936.0,80935.0,0.012355]
[1741893124884,0.00046276,80936.0,80934.0,0.259467]
[1741893125117,0.00046276,80936.0,80935.0,0.012355]
[1741893125495,0.00046276,80936.0,80935.0,0.002]
[1741893125943,0.25992576,80936.0,80935.0,0.002]
[1741893126149,0.00046276,80936.0,80935.0,0.002]
[1741893126563,0.01281776,80936.0,80935.0,0.002]
[1741893126766,0.23623249,80938.0,80935.0,0.003]
[1741893126944,0.0003386,80939.0,80935.0,0.260465]
[1741893127181,0.0003386,80939.0,80937.0,0.247105]
[1741893127390,0.0003386,80939.0,80938.0,0.012355]
[1741893127602,0.0003386,80939.0,80908.0,0.494383]
[1741893127791,0.247102,80938.0,80931.0,0.247123]
[1741893128193,0.00478419,80937.0,80935.0,0.259464]
[1741893128426,0.01954414,80939.0,80937.0,0.25946]
[1741893128618,0.01954414,80939.0,80937.0,0.26046]
[1741893128951,0.01954414,80939.0,80938.0,0.095155]
[1741893131505,0.01954414,80939.0,80938.0,0.097155]
[1741893132563,0.01954414,80939.0,80938.0,0.21809136]
[1741893132779,0.01954414,80939.0,80938.0,0.21809131]
[1741893132969,0.01954414,80939.0,80938.0,0.21685599]
[1741893133169,0.01954414,80939.0,80938.0,0.21885599]
[1741893133650,0.01954414,80939.0,80938.0,0.21685599]
[1741893133865,0.01954414,80939.0,80938.0,0.21609128]
[1741893134100,0.01954414,80939.0,80938.0,0.21809128]
[1741893134326,0.01954414,80939.0,80938.0,0.21885599]
[1741893134506,0.01954414,80939.0,80938.0,0.21685599]
[1741893134916,0.01954414,80939.0,80938.0,0.21885599]
[1741893136322,0.01954414,80939.0,80938.0,0.21685599]
[1741893136635,0.01954414,80939.0,80938.0,0.21985599]
[1741893136796,0.01954414,80939.0,80938.0,0.21909128]
[1741893137224,0.01954414,80939.0,80938.0,0.22209128]
[1741893137584,0.00018223,80939.0,80938.0,0.22209128]
[1741893137804,0.00018223,80939.0,80938.0,0.52209128]
[1741893138003,0.00018223,80939.0,80938.0,0.52085599]
[1741893138874,0.00018223,80939.0,80938.0,0.51785599]
[1741893139107,0.00018223,80939.0,80938.0,0.21785599]
[1741893139323,0.00018223,80939.0,80938.0,0.006]
[1741893139772,0.00624045,80939.0,80938.0,0.003]
[1741893139980,0.00624045,80939.0,80938.0,0.006]
[1741893140206,0.00624045,80939.0,80938.0,0.265457]
[1741893140416,0.00624045,80939.0,80938.0,0.259102]
[1741893140620,0.01954258,80939.0,80938.0,0.259457]
[1741893140834,0.01954258,80939.0,80938.0,0.002]
[1741893141050,0.0256008,80939.0,80938.0,0.002]
[1741893141748,0.0256008,80939.0,80935.0,0.259463]
[1741893142185,0.0256008,80939.0,80938.0,0.003]
[1741893142569,0.0256008,80939.0,80938.0,0.001]
[1741893142909,0.0256008,80939.0,80938.0,0.260457]
[1741893143206,0.259418,80951.0,80944.0,0.247082]
[1741893143385,0.0003382,80953.0,80951.0,0.24706]
[1741893143586,0.0003382,80953.0,80952.0,0.012352]
[1741893144166,0.0003382,80953.0,80949.0,0.247066]
[1741893144515,0.0003382,80953.0,80943.0,0.247086]
[1741893144516,0.259418,80951.0,80945.0,0.259435]
[1741893144733,0.259418,80951.0,80943.0,0.247086]
[1741893145155,0.0003382,80953.0,80947.0,0.247072]
[1741893145403,0.0003382,80953.0,80952.0,0.259411]
[1741893146041,0.0003382,80953.0,80944.0,0.259436]
[1741893146250,0.247066,80950.0,80944.0,0.259436]
[1741893146452,0.247071,80949.0,80944.0,0.259436]
[1741893146892,0.247066,80950.0,80945.0,0.259433]
[1741893147104,0.24706,80952.0,80946.0,0.012353]
[1741893147304,0.0126902,80953.0,80944.0,0.012354]
[1741893147305,0.012353,80951.0,80944.0,0.012354]
[1741893147529,0.247071,80949.0,80944.0,0.259435]
[1741893147698,0.259438,80944.0,80938.0,0.259457]
[1741893147902,0.247068,80950.0,80946.0,0.247077]
[1741893148103,0.247073,80948.0,80941.0,0.012354]
[1741893148306,0.247073,80948.0,80938.0,0.0125238]
[1741893148307,0.012354,80942.0,80938.0,0.0001688]
[1741893148515,0.0003376,80939.0,80938.0,0.0001688]
[1741893148919,0.0003376,80939.0,80938.0,0.0021688]
[1741893150201,0.0003376,80939.0,80938.0,0.0051688]
[1741893150578,0.02546572,80939.0,80938.0,0.0155238]
[1741893150742,0.03377464,80939.0,80938.0,0.0185238]
[1741893150965,0.03377464,80939.0,80938.0,0.0155238]
[1741893151147,0.03377464,80939.0,80938.0,0.0031688]
[1741893151547,0.03377464,80939.0,80938.0,0.0001688]
[1741893151754,0.03377464,80939.0,80938.0,0.0031688]
[1741893152070,0.04612864,80939.0,80938.0,0.0061688]
[1741893152296,0.04612864,80939.0,80938.0,0.0001688]
[1741893153136,0.08239906,80939.0,80938.0,0.0001688]
[1741893153353,0.08239906,80939.0,80938.0,0.0011688]
[1741893154041,0.38239906,80939.0,80938.0,0.0011688]
[1741893154729,0.38239906,80939.0,80938.0,0.0001688]
[1741893156254,0.07004506,80939.0,80938.0,0.0001688]
[1741893156469,0.31714406,80939.0,80938.0,0.0001688]
[1741893156700,0.32949806,80939.0,80938.0,0.0001688]
[1741893157845,0.32949806,80939.0,80938.0,0.0125238]
[1741893157846,0.07004506,80939.0,80938.0,0.0125238]
[1741893158534,0.06173614,80939.0,80938.0,0.0125238]
[1741893159168,0.06173614,80939.0,80938.0,0.0001688]
[1741893159411,0.06998285,80939.0,80938.0,0.0001688]
[1741893160829,0.47048285,80939.0,80913.0,0.0787]
[1741893161045,0.247165,80918.0,80911.0,0.012359]
[1741893161269,0.247157,80922.0,80914.0,0.012358]
[1741893161475,0.03624342,80921.0,80919.0,0.012358]
[1741893161689,0.00824464,80921.0,80920.0,0.012357]
[1741893161908,0.00824464,80921.0,80920.0,0.087957]
[1741893162116,0.0003376,80939.0,80932.0,0.259477]
[1741893162328,0.012355,80937.0,80932.0,0.259477]
[1741893162518,0.03624733,80936.0,80932.0,0.259477]
[1741893162741,0.0082186,80933.0,80932.0,0.259477]
[1741893162931,0.03624733,80933.0,80930.0,0.247126]
[1741893163154,0.012355,80935.0,80930.0,0.247126]
[1741893163155,0.03624733,80932.0,80930.0,0.247126]
[1741893163359,0.247126,80931.0,80926.0,0.259493]
[1741893163557,0.03624733,80930.0,80927.0,0.259489]
[1741893163801,0.03624733,80931.0,80927.0,0.259489]
[1741893164032,0.012356,80930.0,80920.0,0.135457]
[1741893164249,0.012356,80930.0,80913.0,0.32970156]
[1741893164250,0.012357,80923.0,80913.0,0.32970156]
[1741893164467,0.247166,80917.0,80913.0,0.00012456]
[1741893164665,0.012357,80921.0,80913.0,0.01248256]
[1741893164904,0.259511,80922.0,80917.0,0.012358]
[1741893165311,0.02792196,80922.0,80917.0,0.259521]
[1741893165535,0.3,80929.0,80925.0,0.012357]
[1741893165764,0.3,80929.0,80926.0,0.259495]
[1741893165961,0.312356,80929.0,80924.0,0.247144]
[1741893166179,0.3,80929.0,80927.0,0.247136]
[1741893166402,0.3,80929.0,80925.0,0.259496]
[1741893166590,0.31525591,80929.0,80925.0,0.259496]
[1741893166798,0.31525591,80929.0,80925.0,0.012357]
[1741893167026,0.32761191,80929.0,80923.0,0.012357]
[1741893167149,0.01525591,80929.0,80926.0,0.012356]
[1741893167353,0.3,80930.0,80926.0,0.259492]
[1741893167581,0.247132,80929.0,80924.0,0.2595]
[1741893167777,0.01549079,80930.0,80927.0,0.012356]
[1741893168052,0.012356,80930.0,80924.0,0.3405]
[1741893168256,0.02435839,80933.0,80927.0,0.012356]
[1741893168464,0.01575193,80930.0,80928.0,0.247132]
[1741893168710,0.28383339,80933.0,80928.0,0.247132]
[1741893168884,0.29569591,80932.0,80926.0,0.247136]
[1741893169116,0.28334191,80931.0,80926.0,0.247136]
[1741893169334,0.03671339,80933.0,80931.0,0.247123]
[1741893169335,0.02435839,80933.0,80931.0,0.247123]
[1741893169543,0.7848,80937.0,80933.0,0.259472]
[1741893169788,0.7848,80937.0,80935.0,0.247109]
[1741893170029,0.7848,80937.0,80934.0,0.259469]
[1741893170413,0.02460697,80936.0,80932.0,0.340775]
[1741893170711,0.27171697,80936.0,80932.0,0.0813]
[1741893171021,0.012355,80935.0,80929.0,0.247128]
[1741893171225,0.259488,80929.0,80927.0,0.0813]
[1741893171675,0.012356,80932.0,80927.0,0.328436]
[1741893171676,0.259477,80932.0,80927.0,0.328436]
[1741893171895,0.012356,80931.0,80927.0,0.0813]
[1741893172357,0.247128,80930.0,80927.0,0.0813]
[1741893172701,0.012356,80930.0,80927.0,0.0823]
[1741893172916,0.012356,80928.0,80927.0,0.001]
[1741893173137,0.012356,80928.0,80917.0,0.0001688]
[1741893173138,0.259492,80927.0,80917.0,0.0125268]
[1741893173346,0.012356,80926.0,80919.0,0.012358]
[1741893173755,0.259501,80925.0,80919.0,0.012358]
[1741893173970,0.259501,80925.0,80917.0,0.0001688]
[1741893173971,0.24716,80919.0,80917.0,0.0001688]
[1741893174176,0.012358,80914.0,80913.0,0.00012456]
[1741893174383,0.559534,80914.0,80913.0,0.00012456]
[1741893174584,0.59577237,80914.0,80913.0,0.00012456]
[1741893175804,0.59577237,80914.0,80913.0,0.00112456]
[1741893176004,0.59577237,80914.0,80913.0,0.00212456]
[1741893176005,0.61031322,80914.0,80913.0,0.00212456]
[1741893176212,1.01981322,80914.0,80913.0,0.00212456]
[1741893176657,1.02800834,80914.0,80913.0,0.00212456]
[1741893178388,1.02800834,80914.0,80913.0,0.00112456]
[1741893178603,1.02800834,80914.0,80913.0,0.00012456]
[1741893180439,1.17940834,80914.0,80913.0,0.00012456]
[1741893181330,0.04443349,80914.0,80913.0,0.01248256]
[1741893181767,0.247176,80914.0,80913.0,0.00012456]
[1741893181970,0.25517378,80914.0,80913.0,0.00012456]
[1741893182205,0.00799778,80914.0,80913.0,0.00012456]
[1741893182413,0.09884128,80917.0,80913.0,0.00012456]
[1741893182673,0.04516378,80914.0,80913.0,0.25965856]
[1741893182896,0.06624651,80917.0,80916.0,0.256527]
[1741893183116,0.13550998,80920.0,80918.0,0.259518]
[1741893183117,0.17267198,80920.0,80918.0,0.259518]
[1741893183356,0.17267198,80920.0,80916.0,0.256527]
[1741893183746,0.17267198,80920.0,80917.0,0.247166]
[1741893183968,0.17267198,80920.0,80916.0,0.009358]
[1741893184466,0.17267198,80920.0,80913.0,0.00012456]
[1741893184467,0.247163,80918.0,80913.0,0.00012456]
[1741893184688,0.247172,80915.0,80913.0,0.00012456]
[1741893184950,0.012358,80914.0,80913.0,0.00012456]
[1741893185406,0.012358,80918.0,80913.0,0.00012456]
[1741893185625,0.012358,80916.0,80913.0,0.00012456]
[1741893185855,0.012358,80916.0,80913.0,0.00029346]
[1741893186079,0.25953,80916.0,80913.0,0.00029346]
[1741893186721,0.259524,80918.0,80913.0,0.00029346]
[1741893186946,0.012358,80918.0,80913.0,0.24746946]
[1741893187166,0.06220342,80920.0,80918.0,0.247161]
[1741893188457,0.06220342,80920.0,80919.0,0.012358]
[1741893189763,0.06220342,80920.0,80916.0,0.259526]
[1741893189983,0.36220342,80920.0,80919.0,0.012358]
[1741893190214,0.06220342,80920.0,80919.0,0.012358]
[1741893190428,0.0003378,80920.0,80919.0,0.059458]
[1741893190949,0.00846915,80920.0,80919.0,0.059458]
[1741893191163,0.00846915,80920.0,80919.0,0.0471]
[1741893191813,0.02082615,80920.0,80919.0,0.0491]
[1741893192029,0.259534,80914.0,80906.0,0.1264]
[1741893192241,0.012359,80907.0,80906.0,0.0781]
[1741893192446,0.012358,80913.0,80906.0,0.0781]
[1741893192663,0.259534,80914.0,80909.0,0.012359]
[1741893192878,0.012359,80909.0,80906.0,0.0781]
[1741893193101,0.02047949,80908.0,80906.0,0.0781]
[1741893193317,0.28234844,80908.0,80906.0,0.0781]
[1741893193525,0.02279244,80908.0,80901.0,0.01236]
[1741893193731,0.02279244,80908.0,80904.0,0.247205]
[1741893193945,0.00812049,80908.0,80907.0,0.012359]
[1741893194142,0.02528229,80910.0,80905.0,0.247203]
[1741893194396,0.012359,80908.0,80903.0,0.247209]
[1741893194596,0.02045673,80909.0,80904.0,0.01236]
[1741893194825,0.02045673,80909.0,80906.0,0.002]
[1741893195017,0.00809773,80909.0,80908.0,0.259553]
[1741893195290,0.00809773,80909.0,80906.0,0.2472]
[1741893195493,0.00809773,80909.0,80907.0,0.259553]
[1741893195709,0.00809773,80909.0,80908.0,0.012359]
[1741893195929,0.00809773,80909.0,80908.0,0.090159]
[1741893196152,0.0145606,80917.0,80913.0,0.012358]
[1741893196367,0.02436023,80912.0,80910.0,0.259544]
[1741893196587,0.0145606,80917.0,80913.0,0.012358]
[1741893196758,0.012358,80915.0,80910.0,0.012359]
[1741893196994,0.247176,80914.0,80909.0,0.247191]
[1741893197140,0.259532,80915.0,80910.0,0.247185]
[1741893197353,0.00809933,80914.0,80910.0,0.247185]
[1741893197922,0.259539,80913.0,80908.0,0.090159]
[1741893198102,0.28008179,80914.0,80908.0,0.33735]
[1741893198248,0.2552904,80912.0,80908.0,0.0808]
[1741893198463,0.247182,80912.0,80910.0,0.002]
[1741893198702,0.00810802,80911.0,80908.0,0.0778]
[1741893199293,0.012358,80913.0,80910.0,0.002]
[1741893199433,0.012359,80911.0,80910.0,0.001]
[1741893199598,0.012359,80909.0,80906.0,0.0001689]
[1741893199801,0.03716346,80914.0,80906.0,0.0001689]
[1741893199802,0.02480546,80914.0,80909.0,0.24719]
[1741893200000,0.02480546,80914.0,80907.0,0.012359]
[1741893200001,0.03626122,80913.0,80910.0,0.259544]
[1741893200377,0.02480546,80914.0,80910.0,0.247185]
[1741893200584,0.27198346,80914.0,80910.0,0.247185]
[1741893200801,0.012359,80907.0,80906.0,0.0001689]
[1741893201216,0.247193,80909.0,80906.0,0.0001689]
[1741893201427,0.247196,80908.0,80906.0,0.0001689]
[1741893201635,0.259555,80908.0,80906.0,0.0001689]
[1741893201811,0.012359,80907.0,80906.0,0.0001689]
[1741893202014,0.012359,80907.0,80906.0,0.0021689]
[1741893202305,0.012359,80907.0,80906.0,0.0001689]
[1741893202550,0.012359,80907.0,80906.0,0.0021689]
[1741893202982,0.04863538,80907.0,80906.0,0.0001689]
[1741893203398,0.04863538,80907.0,80906.0,0.0011689]
[1741893203801,0.04863538,80907.0,80906.0,0.0031689]
[1741893204424,0.34863538,80907.0,80906.0,0.0031689]
[1741893205362,0.34863538,80907.0,80906.0,0.0021689]
[1741893205485,0.34863538,80907.0,80906.0,0.0001689]
[1741893206570,0.35671776,80907.0,80906.0,0.0001689]
[1741893206806,0.05671776,80907.0,80906.0,0.0001689]
[1741893207043,0.04435876,80907.0,80906.0,0.0001689]
[1741893207730,0.05671776,80907.0,80906.0,0.0001689]
[1741893208287,0.04435876,80907.0,80906.0,0.0767689]
[1741893208491,0.05671776,80907.0,80906.0,0.0767689]
[1741893208929,0.05671776,80907.0,80906.0,0.0001689]
[1741893210908,0.35671776,80907.0,80906.0,0.0001689]
[1741893211119,0.37125861,80907.0,80906.0,0.0001689]
[1741893212351,0.35671776,80907.0,80906.0,0.0001689]
[1741893214116,0.37125861,80907.0,80906.0,0.0001689]
[1741893214834,0.012359,80907.0,80906.0,0.0001689]
[1741893215050,0.01935214,80907.0,80906.0,0.0001689]
[1741893215249,0.00699314,80907.0,80906.0,0.0001689]
[1741893215462,0.06774167,80913.0,80912.0,0.559541]
[1741893215669,0.06774167,80913.0,80912.0,0.385541]
[1741893216291,0.0003378,80913.0,80912.0,0.385541]
[1741893216702,0.0013378,80913.0,80912.0,0.126]
[1741893216897,0.0013378,80913.0,80912.0,0.385541]
[1741893217111,0.0003378,80913.0,80912.0,0.385541]
[1741893217314,0.0003378,80913.0,80912.0,0.389541]
[1741893217725,0.0003378,80913.0,80912.0,0.387541]
[1741893218562,0.0003378,80913.0,80912.0,0.389541]
[1741893218763,0.0003378,80913.0,80912.0,0.385541]
[1741893219171,0.0003378,80913.0,80912.0,0.383541]
[1741893219576,0.0003378,80913.0,80912.0,0.390541]
[1741893219980,0.0003378,80913.0,80912.0,0.386541]
[1741893220155,0.00038393,80913.0,80912.0,0.386541]
[1741893220759,0.00038393,80913.0,80912.0,0.383541]
[1741893220929,0.00038393,80913.0,80912.0,0.386541]
[1741893221547,0.00038393,80913.0,80912.0,0.389541]
[1741893222174,0.00038393,80913.0,80912.0,0.386541]
[1741893222324,0.00038393,80913.0,80912.0,0.389541]
[1741893223361,0.00038393,80913.0,80912.0,0.386541]
[1741893224744,0.00038393,80913.0,80912.0,0.389541]
[1741893229647,0.00038393,80913.0,80912.0,0.386541]
[1741893229834,0.00038393,80913.0,80912.0,0.383541]
[1741893229995,0.00038393,80913.0,80912.0,0.388541]
[1741893230209,0.00038393,80913.0,80912.0,0.393541]
[1741893230426,0.00038393,80913.0,80912.0,0.388541]
[1741893231489,0.00038393,80913.0,80912.0,0.383541]
[1741893231811,0.00038393,80913.0,80912.0,0.393541]
[1741893232260,0.00038393,80913.0,80912.0,0.383541]
[1741893232679,0.00038393,80913.0,80912.0,0.386541]
[1741893233017,0.00038393,80913.0,80912.0,0.387541]
[1741893233563,0.00038393,80913.0,80912.0,0.390541]
[1741893233955,0.00038393,80913.0,80912.0,0.386541]
[1741893234768,0.00038393,80913.0,80912.0,0.383541]
[1741893235069,0.00038393,80913.0,80912.0,0.387541]
[1741893235297,0.00038393,80913.0,80912.0,0.391541]
[1741893235788,0.00038393,80913.0,80912.0,0.3917099]
[1741893237899,0.25992093,80913.0,80912.0,0.0081689]
[1741893238328,0.259556,80907.0,80906.0,0.0001689]
[1741893238555,0.29556025,80907.0,80906.0,0.0001689]
[1741893238687,0.30171908,80907.0,80906.0,0.0001689]
[1741893239236,0.04216308,80907.0,80906.0,0.0125289]
[1741893239590,0.00615883,80907.0,80906.0,0.0125289]
[1741893239811,0.259543,80912.0,80906.0,0.2597259]
[1741893240008,0.02480595,80913.0,80910.0,0.247188]
[1741893240418,0.02480595,80913.0,80912.0,0.259541]
[1741893240618,0.02480595,80913.0,80912.0,0.337641]
[1741893241032,0.02480595,80913.0,80909.0,0.012359]
[1741893241234,0.02480595,80913.0,80911.0,0.012359]
[1741893241405,0.02480595,80913.0,80910.0,0.247187]
[1741893241617,0.02480595,80913.0,80910.0,0.259546]
[1741893241822,0.02480595,80913.0,80909.0,0.012359]
[1741893242225,0.02480595,80913.0,80907.0,0.0823]
[1741893242226,0.259547,80910.0,80907.0,0.0823]
[1741893242477,0.012359,80907.0,80906.0,0.0021689]
[1741893242685,0.012359,80907.0,80906.0,0.0001689]
[1741893243059,0.247182,80912.0,80906.0,0.0001689]
[1741893243373,0.03599722,80911.0,80910.0,0.259544]
[1741893243597,0.03599742,80912.0,80909.0,0.001]
[1741893243810,0.03599742,80911.0,80909.0,0.001]
[1741893244013,0.03599742,80912.0,80909.0,0.001]
[1741893244243,0.27198795,80913.0,80907.0,0.248196]
[1741893244456,0.04834692,80912.0,80907.0,0.260555]
[1741893244664,0.03598792,80911.0,80907.0,0.260555]
[1741893244890,0.012359,80912.0,80907.0,0.259555]
[1741893245118,0.05256481,80917.0,80912.0,0.012359]
[1741893245332,0.06492281,80917.0,80912.0,0.011359]
[1741893245546,0.259539,80913.0,80908.0,0.247191]
[1741893245784,0.259539,80913.0,80906.0,0.0135289]
[1741893245785,0.247194,80908.0,80906.0,0.0001689]
[1741893246026,0.83328145,80907.0,80906.0,0.0001689]
[1741893247297,0.797319,80907.0,80906.0,0.0001689]
[1741893247530,0.8362896,80907.0,80906.0,0.0001689]
[1741893247753,0.800319,80907.0,80906.0,0.0001689]
[1741893248011,0.78796,80907.0,80906.0,0.0125289]
[1741893248240,0.003,80907.0,80906.0,0.0934289]
[1741893248464,0.006,80907.0,80906.0,0.0934289]
[1741893248934,0.003,80907.0,80906.0,0.0934289]
[1741893249182,0.005,80907.0,80906.0,0.0934289]
[1741893249410,0.02540658,80913.0,80912.0,0.012359]
[1741893249639,0.02540658,80913.0,80910.0,0.247185]
[1741893249833,0.02540658,80913.0,80911.0,0.259541]
[1741893250061,0.02540658,80913.0,80912.0,0.012359]
[1741893250526,0.0003378,80913.0,80912.0,0.012359]
[1741893251062,0.01568584,80916.0,80912.0,0.259538]
[1741893251691,0.00604864,80915.0,80912.0,0.261538]
[1741893252310,0.00604864,80915.0,80912.0,0.259538]
[1741893252892,0.00604864,80915.0,80913.0,0.259534]
[1741893253487,0.00604864,80915.0,80914.0,0.012358]
[1741893254219,0.01568584,80916.0,80915.0,0.25953]
[1741893254762,0.01568584,80916.0,80915.0,0.34213]
[1741893255607,0.0003378,80920.0,80919.0,0.259518]
[1741893255792,0.0003378,80920.0,80919.0,0.50311899]
[1741893256196,0.0003378,80920.0,80919.0,0.80311899]
[1741893256398,8e-07,80920.0,80919.0,0.81765984]
[1741893257176,8e-07,80920.0,80919.0,0.81965984]
[1741893258463,0.0003376,80938.0,80937.0,0.39096]
[1741893258694,0.00037911,80938.0,80937.0,0.66186099]
[1741893259310,0.00037911,80938.0,80937.0,0.96186099]
[1741893259954,0.00037911,80938.0,80937.0,0.96586099]
[1741893260188,0.00037911,80938.0,80937.0,0.96986099]
[1741893262700,7.1e-07,80939.0,80938.0,0.317355]
[1741893262901,7.1e-07,80939.0,80938.0,0.57299684]
[1741893263282,7.1e-07,80939.0,80938.0,0.56799684]
[1741893263906,7.1e-07,80939.0,80938.0,0.55345599]
[1741893264111,7.1e-07,80939.0,80938.0,0.55745599]
[1741893265073,7.1e-07,80939.0,80938.0,0.56145599]
[1741893265244,7.1e-07,80939.0,80938.0,0.55745599]
[1741893265445,7.1e-07,80939.0,80938.0,0.55345599]
[1741893265652,7.1e-07,80939.0,80938.0,0.55945599]
[1741893266257,7.1e-07,80939.0,80938.0,0.56545599]
[1741893268240,7.1e-07,80939.0,80938.0,0.71657599]
[1741893271337,7.1e-07,80939.0,80938.0,0.012]
[1741893271743,0.0064147,80939.0,80938.0,0.012]
[1741893271951,7.1e-07,80939.0,80938.0,0.012]
[1741893272173,0.07091684,80943.0,80938.0,0.012]
[1741893272373,0.0252971,80940.0,80938.0,0.006]
[1741893272622,0.00557512,80939.0,80937.0,0.259458]
[1741893272826,0.0252971,80940.0,80939.0,0.247099]
[1741893273762,0.0252971,80940.0,80938.0,0.001]
[1741893274650,0.0252971,80940.0,80938.0,0.248102]
[1741893274869,0.0252971,80940.0,80938.0,0.259457]
[1741893275304,0.0252971,80940.0,80939.0,0.002]
[1741893275722,0.0252971,80940.0,80939.0,0.248099]
[1741893275929,0.0252971,80940.0,80939.0,0.260453]